[Event "Czech Open-GM 2022"]
[Site "Pardubice"]
[Date "2022.07.26"]
[Round "5.43"]
[White "Bhambure, Shantanu"]
[Black "Balazs, Balint"]
[Result "1-0"]
[ECO "D31"]
[WhiteElo "2320"]
[BlackElo "2174"]
[Annotator "TA"]
[PlyCount "107"]
[EventDate "2022.07.22"]
[EventType "swiss"]
[EventCountry "CZE"]
[SourceTitle "playchess.com"]
[Source "ChessBase"]
[SourceQuality "1"]
[TimeControl "40/5400+30:1800+30"]

{[%evp 16,107,70,72,89,91,141,100,107,103,101,101,146,87,136,103,141,136,155,169,171,138,166,150,154,161,178,172,169,137,189,188,202,202,209,209,214,209,228,228,262,217,300,301,284,255,410,393,503,475,405,218,724,663,748,795,760,852,971,928,911,887,809,758,1097,1040,1327,1300,1271,1270,1173,914,1409,708,845,563,1423,1277,1418,1403,1277,1270,29958,12431,5181,3569,2723,2700,29987,29988,29988,29989,29989,29990]} 1. d4 {[%emt 0:00:06]} d5 {[%emt 0:00:27]} 2. c4 {[%emt 0:00:12]} e6 {[%emt 0:00:05]} 3. Nc3 {[%emt 0:00:12]} f5 {[%emt 0:00:05]} 4. Nf3 {[%emt 0:01:54]} Nf6 {[%emt 0:00:21]} 5. Bf4 {[%emt 0:00:35]} c6 {[%emt 0:00:08]} 6. e3 {[%emt 0:00:51]} Be7 {[%emt 0:00:12]} 7. Bd3 {[%emt 0:01:57]} O-O {[%emt 0:02:29]} 8. Qc2 {[%emt 0:00:59]} Ne4 {[%emt 0:00:10]} 9. h3 {[%emt 0:01:49]} Na6 {[%emt 0:04:01] A84: Dutch Defence: 2 c4 Miscellaneous.} 10. a3 {[%emt 0:01:02] [#] Prevents Nb4.} g6 $146 {[%emt 0:11:04]} ({Better is} 10... Nb8) ({Predecessor:} 10... Qa5 11. O-O Bd7 12. b4 Qd8 13. Ne5 Nc7 14. c5 g5 15. Bh2 Nxc3 16. Qxc3 Be8 17. f3 {1-0 (34) Sapunov,E (2461)-Greet,A (2417) Chess.com INT 2021}) 11. O-O {[%emt 0:13:49]} Bf6 {[%emt 0:07:08] White is better.} 12. b4 {[%emt 0:10:21]} Nxc3 {[%emt 0:01:47]} 13. Qxc3 {[%emt 0:00:06]} Nc7 {[%emt 0:00:18]} 14. Qb3 {[%emt 0:02:43]} (14. c5 $142) 14... a6 {[%emt 0:12:15]} (14... dxc4 $142 15. Bxc4 (15. Qxc4 Nd5 $16) 15... a5) 15. Rfc1 {[%emt 0:05:37]} Ne8 {[%emt 0:00:31]} 16. c5 {[%emt 0:03:37]} Nc7 {[%emt 0:01:05]} 17. a4 {[%emt 0:01:32] White is much more active. The black rooks are badly placed.} Bd7 {[%emt 0:00:36]} 18. Bd6 {[%emt 0:05:23]} Be7 {[%emt 0:00:41]} 19. Bxe7 {[%emt 0:02:29]} Qxe7 {[%emt 0:10:02]} 20. Ne5 {[%emt 0:00:25]} Be8 {[%emt 0:00:33]} 21. Re1 {[%emt 0:02:23]} Qh4 {[%emt 0:03:01]} 22. f4 {[%emt 0:05:08]} Qh6 {[%emt 0:04:14]} (22... g5 $16 {keeps fighting.}) 23. Rf1 {[%emt 0:00:41]} Qh4 {[%emt 0:05:29]} 24. Kh2 {[%emt 0:01:11]} Qf6 {[%emt 0:01:06]} 25. Rf3 {[%emt 0:00:40]} Kh8 {[%emt 0:02:42]} 26. Rg1 {[%emt 0:00:34]} Rd8 {[%emt 0:07:58]} 27. g4 {[%emt 0:00:49][%cal Bg2g4,Bg4g5][%mdl 32]} Rb8 {[%emt 0:03:01]} 28. Qc3 {[%emt 0:01:56]} Rd8 {[%emt 0:00:07]} 29. g5 {[%emt 0:01:16]} Qe7 {[%emt 0:00:25]} 30. h4 {[%emt 0:00:26]} Kg7 $2 {[%emt 0:05:47]} (30... h5 {was necessary.} 31. gxh6 Qh7) 31. Rh3 {[%emt 0:00:33]} Rb8 {[%emt 0:03:40]} 32. Be2 {[%emt 0:00:47]} Rh8 {[%emt 0:00:23]} 33. Kg3 {[%emt 0:01:41]} (33. h5 $142) 33... Kf8 $2 {[%emt 0:00:58]} (33... h5 34. Rf1 Rg8) 34. h5 $18 {[%emt 0:03:33]} Qg7 {[%emt 0:02:11]} 35. Rgh1 {[%emt 0:01:22]} gxh5 {[%emt 0:02:09]} 36. Bxh5 {[%emt 0:00:09]} Bxh5 {[%emt 0:00:05]} 37. Rxh5 {[%emt 0:00:04]} Ke7 {[%emt 0:00:15]} 38. Qc2 {[%emt 0:01:03]} Rbg8 {[%emt 0:02:55]} 39. Qh2 {[%emt 0:00:59]} Ne8 {[%emt 0:03:37]} 40. Kf3 {[%emt 0:01:33]} h6 {[%emt 0:04:25]} 41. Rxh6 {[%emt 0:30:12]} Rxh6 {[%emt 0:30:06]} 42. Qxh6 {[%emt 0:00:07]} Qxh6 {[%emt 0:00:31]} 43. Rxh6 {[%emt 0:00:03][%mdl 4096] Endgame KRN-KRN} Rg7 {[%emt 0:00:43]} 44. Kg3 {[%emt 0:00:20] [#] Threatens to win with Rh8.} Rg8 {[%emt 0:01:50]} 45. Kg2 {[%emt 0:01:47]} Rg7 {[%emt 0:00:10]} 46. Rh8 {[%emt 0:01:23]} Kd8 {[%emt 0:00:00]} 47. Kh3 {[%emt 0:00:00] Hoping for Kh4.} Ke7 {[%emt 0:00:00]} 48. Kh4 {[%emt 0:00:00]} Kd8 {[%emt 0:00:00]} 49. Kh5 {[%emt 0:00:00] [#] White threatens g6 and mate.} Re7 {[%emt 0:00:00]} 50. g6 {[%emt 0:00:00]} Kc7 {[%emt 0:00:00]} 51. Kg5 {[%emt 0:00:00] Intending Rh7 and mate.} b5 {[%emt 0:00:00]} 52. axb5 {[%emt 0:00:00] White mates.} cxb5 {[%emt 0:00:00]} 53. Rh7 {[%emt 0:00:00]} Rg7 {[%emt 0:00:00]} 54. Kh6 {[%emt 0:00:00] Weighted Error Value: White=0.27 (precise) /Black=0.73} 1-0

[Event "Czech Open-GM 2022"]
[Site "Pardubice"]
[Date "2022.07.26"]
[Round "5.44"]
[White "Nguyen, Alex Dac-Vuong"]
[Black "Hassemeier, Mika"]
[Result "1/2-1/2"]
[ECO "D37"]
[WhiteElo "2318"]
[BlackElo "2166"]
[Annotator "TA"]
[PlyCount "91"]
[EventDate "2022.07.22"]
[EventType "swiss"]
[EventCountry "CZE"]
[SourceTitle "playchess.com"]
[Source "ChessBase"]
[SourceQuality "1"]
[TimeControl "40/5400+30:1800+30"]

{[%evp 9,91,21,40,25,32,34,25,25,47,32,29,29,28,29,20,27,35,22,33,35,40,33,71,70,105,106,111,114,101,110,109,103,95,52,135,102,119,111,356,113,113,84,120,127,144,135,152,97,95,96,269,107,243,0,0,0,0,-6,-6,-6,-11,-11,288,298,435,450,350,223,223,223,219,159,158,0,214,197,193,201,284,298,288,279,237,133]} 1. d4 {[%emt 0:00:03]} Nf6 {[%emt 0:00:41]} 2. c4 {[%emt 0:00:05]} e6 {[%emt 0:00:08]} 3. Nf3 {[%emt 0:00:07]} d5 {[%emt 0:00:07]} 4. Nc3 {[%emt 0:00:05]} dxc4 {[%emt 0:00:04]} 5. e4 {[%emt 0:00:03][%cal Be2e4,Be4e5][%mdl 32]} b5 {[%emt 0:00:25]} 6. e5 {[%emt 0:00:05] D24: Queen's Gambit Accepted: 3 Nf3 Nf6 4 Nc3.} Nd5 {[%emt 0:00:08]} 7. Nxb5 {[%emt 0:00:05]} Nb6 {[%emt 0:00:12]} 8. Be2 {[%emt 0:00:07] White has an edge.} Nc6 {[%emt 0:02:26]} 9. O-O {[%emt 0:00:08]} Be7 {[%emt 0:00:08] Inhibits Bg5.} 10. Be3 {[%emt 0:01:02] 10.Qd2 is more fashionable.} O-O {[%emt 0:01:20]} 11. Nc3 {[%emt 0:00:28]} Rb8 {[%emt 0:01:31]} 12. b3 {[%emt 0:00:33]} cxb3 {[%emt 0:02:55]} 13. axb3 {[%emt 0:00:05]} a5 {[%emt 0:09:21]} 14. Qb1 {[%emt 0:04:41]} Bb7 {[%emt 0:10:25] [#]} 15. Rd1 $146 {[%emt 0:13:00]} ({Predecessor:} 15. Qe4 Nd5 16. Nxd5 exd5 17. Qf4 Bc8 18. Rfc1 Qe8 19. Rc3 Rb6 20. h4 Nd8 21. h5 {½-½ (46) Aditya,M (2490)-Indjic,A (2621) Tashkent 2022}) 15... Ba8 {[%emt 0:04:51]} 16. Qe4 {[%emt 0:06:56]} Re8 {[%emt 0:26:29]} 17. Qg4 {[%emt 0:04:33]} (17. Bd3 g6 $11) 17... Nb4 {[%emt 0:05:21]} 18. Bh6 {[%emt 0:06:04][%csl Gh6][%cal Rg4g7]} Bf8 {[%emt 0:01:57]} 19. Rxa5 {[%emt 0:00:18]} Kh8 {[%emt 0:11:19]} 20. Bc1 {[%emt 0:18:46] aiming for Ng5. 0x0.00198f9f8370dp-1022s more active pieces.} h6 {[%emt 0:04:27] Prevents Ng5.} 21. Qh5 {[%emt 0:06:17]} Qd7 {[%emt 0:01:51]} (21... Kg8 $1 $14) 22. Ng5 $16 {[%emt 0:01:22] Bb5 is the strong threat.} Kg8 {[%emt 0:00:22]} 23. Nge4 {[%emt 0:01:04]} N6d5 $2 {[%emt 0:00:36] [#]} (23... Bxe4 $16 24. Nxe4 N6d5) 24. Qg4 $2 {[%emt 0:04:47]} (24. Bxh6 $1 $18 {[%mdl 512]} Be7 25. Nxd5 Nxd5 26. Qg4) 24... Kh8 {[%emt 0:01:36]} 25. Na4 {[%emt 0:02:31]} Nc6 {[%emt 0:03:07][%cal Bb4c6,Bc6e7,Be7f5][%mdl 32]} 26. Nac5 {[%emt 0:00:37]} Bxc5 {[%emt 0:00:23]} 27. Rxc5 {[%emt 0:01:53]} (27. Nxc5 $6 Qe7 28. Ra1 Nc3 $11) 27... Nce7 {[%emt 0:03:02] [#]} 28. Rd3 {[%emt 0:12:26]} (28. Nf6 $142 $1 {[%mdl 512]} gxf6 29. Qh5 (29. Bxh6 Rg8 $17)) 28... Nf5 {[%emt 0:02:11]} 29. Rh3 {[%emt 0:00:05][%cal Oe4f6] And now Nf6! would win.} Nde7 $2 {[%emt 0:01:38] [#]} (29... Rg8 $16) 30. Rc4 $2 {[%emt 0:08:26]} (30. Nf6 $1 $18 {[%cal Rf6d7][%mdl 512]} Qd8 31. Nxe8 Qxe8 32. Rxc7) 30... Bd5 {[%emt 0:04:23] [#]} (30... Rg8 $16) 31. Nc5 $2 {[%emt 0:00:13]} (31. Nf6 $1 $18 {[%cal Rf6d7][%mdl 512]} Qc8 (31... Qd8 32. Nxe8) 32. Nxe8 Qxe8 33. Rxc7) 31... Qd8 $11 {[%emt 0:00:25]} 32. Rc2 {[%emt 0:02:49]} Rb4 {[%emt 0:00:11]} 33. Bb2 $132 {[%emt 0:03:36][%mdl 2048] White is not keeping still} Nc6 {[%emt 0:00:32][%cal Rf5d4]} 34. Bc4 {[%emt 0:00:58]} Bxc4 {[%emt 0:01:37]} 35. Rxc4 {[%emt 0:00:02]} Qb8 $2 {[%emt 0:00:29][%mdl 8192]} (35... Qa8 $11 36. Rc1 Rd8) 36. Na6 $1 $18 {[%emt 0:00:37][%csl LRb4,LRb8,LRc6]} Qb5 {[%emt 0:00:21]} (36... Qb7 $142 37. Nxb4 (37. Rxc6 Rxd4 38. Bxd4 Qxc6 $16) 37... Nxb4) 37. Nxb4 {[%emt 0:00:17]} Nxb4 {[%emt 0:00:05]} 38. Qd1 {[%emt 0:00:47] Strongly threatening g4.} ({Don't take} 38. Rxc7 Qa5) 38... Nd5 {[%emt 0:00:21]} 39. Rd3 {[%emt 0:02:42]} Ra8 {[%emt 0:00:51]} 40. Rd2 {[%emt 0:00:40]} Rb8 {[%emt 0:00:41]} 41. Rd3 {[%emt 0:12:38]} (41. Rc1 $16) 41... Ra8 $1 {[%emt 0:02:38]} 42. Bc3 {[%emt 0:01:47]} Ra3 {[%emt 0:01:13]} 43. Be1 {[%emt 0:01:29] Threatens to win with Ra4.} Qa6 {[%emt 0:01:09]} (43... Qb7 $142 44. g3 Ra2) 44. Ra4 {[%emt 0:00:21]} Rxa4 {[%emt 0:00:13]} 45. bxa4 {[%emt 0:00:01]} Nf4 {[%emt 0:01:19]} 46. Re3 {[%emt 0:10:51] Weighted Error Value: White=0.34/Black=0.33} 1/2-1/2

[Event "Czech Open-GM 2022"]
[Site "Pardubice"]
[Date "2022.07.27"]
[Round "6.1"]
[White "Brodowski, Piotr"]
[Black "Donchenko, Alexander"]
[Result "1/2-1/2"]
[ECO "D38"]
[WhiteElo "2450"]
[BlackElo "2640"]
[Annotator "TA"]
[PlyCount "57"]
[EventDate "2022.07.22"]
[EventType "swiss"]
[EventCountry "CZE"]
[SourceTitle "playchess.com"]
[Source "ChessBase"]
[SourceQuality "1"]
[TimeControl "40/5400+30:1800+30"]

{[%evp 12,57,15,3,9,11,20,20,19,14,24,14,14,10,17,19,20,16,12,3,45,0,0,0,0,0,0,-14,-14,-10,0,0,0,0,0,0,0,0,0,0,0,0,0,0,0,0,0,0]} 1. d4 {[%emt 0:00:08]} Nf6 {[%emt 0:00:36]} 2. c4 {[%emt 0:00:07]} e6 {[%emt 0:00:30]} 3. Nf3 {[%emt 0:00:07]} d5 {[%emt 0:02:51]} 4. Nc3 {[%emt 0:00:58]} Bb4 {[%emt 0:03:10]} 5. cxd5 {[%emt 0:02:20]} exd5 {[%emt 0:00:06]} 6. Bg5 {[%emt 0:00:54]} h6 {[%emt 0:00:21]} 7. Bh4 {[%emt 0:00:10]} O-O {[%emt 0:01:55] 7...Bf5 is a critical line. D38: Queen's Gambit Declined: Ragozin Defence (4 Nf3 Bb4).} 8. e3 {[%emt 0:01:46]} Bf5 {[%emt 0:00:28]} 9. Be2 {[%emt 0:00:18]} Nbd7 {[%emt 0:06:30]} 10. Qb3 {[%emt 0:00:52]} Bxc3+ {[%emt 0:09:25]} 11. Qxc3 {[%emt 0:02:38]} c6 {[%emt 0:04:26]} 12. Nd2 {[%emt 0:01:05][%cal Bf3d2,Bd2f1,Bf1g3][%mdl 32]} Ne4 {[%emt 0:02:14]} 13. Bxd8 {[%emt 0:00:12]} Nxc3 {[%emt 0:00:06]} 14. bxc3 {[%emt 0:00:03] [#] Hoping for Bh4.} Rfxd8 {[%emt 0:00:24]} 15. a4 {[%emt 0:00:04] [#]} Nb6 $146 {[%emt 0:04:03][%cal Bd7b6,Bb6c8,Bc8d6][%mdl 32]} ({Predecessor:} 15... Rac8 16. g4 Bh7 17. Nf1 c5 18. Ng3 Nf6 19. a5 cxd4 20. cxd4 Rc2 21. O-O Ne4 {½-½ (31) Bu,X (2705)-Wei,Y (2725) Liaocheng 2021}) 16. Nf1 {[%emt 0:02:11]} Nc8 {[%emt 0:03:34] The position is equal.} 17. Ng3 {[%emt 0:00:52]} Bg6 {[%emt 0:01:04]} 18. Kd2 {[%emt 0:11:03][%cal Be1d2,Bd2d3,Bd3e4,Be4e5][%mdl 32]} Nd6 {[%emt 0:01:53]} 19. Bd3 {[%emt 0:11:10]} Bxd3 {[%emt 0:03:47]} 20. Kxd3 {[%emt 0:00:26]} Rac8 {[%emt 0:00:18]} (20... Re8 {with more complications.} 21. Ne2 b6 22. a5 f6) 21. e4 {[%emt 0:15:27]} dxe4+ {[%emt 0:04:47]} 22. Nxe4 {[%emt 0:00:21]} Nxe4 {[%emt 0:07:47]} 23. Kxe4 $11 {[%emt 0:00:33][%mdl 4096] Endgame KRR-KRR} c5 {[%emt 0:00:24]} 24. d5 {[%emt 0:00:25]} f5+ {[%emt 0:06:43]} 25. Ke5 {[%emt 0:00:21]} ({Much weaker is} 25. Kxf5 Rxd5+ 26. Ke4 Rd2 $17) 25... Re8+ {[%emt 0:04:42]} 26. Kd6 {[%emt 0:02:06]} Red8+ {[%emt 0:06:04]} 27. Ke5 {[%emt 0:07:38]} Re8+ {[%emt 0:02:33]} 28. Kd6 {[%emt 0:02:02]} Red8+ {[%emt 0:06:30]} 29. Ke5 {[%emt 0:00:45] A balanced but interesting game.  Weighted Error Value: White=0.04 (flawless) /Black=0.02 (flawless)} 1/2-1/2

[Event "Czech Open-GM 2022"]
[Site "Pardubice"]
[Date "2022.07.27"]
[Round "6.2"]
[White "Moksh Amit Doshi"]
[Black "Stachowiak, Kamil"]
[Result "1/2-1/2"]
[ECO "A46"]
[WhiteElo "2409"]
[BlackElo "2476"]
[Annotator "TA"]
[PlyCount "44"]
[EventDate "2022.07.22"]
[EventType "swiss"]
[EventCountry "CZE"]
[SourceTitle "playchess.com"]
[Source "ChessBase"]
[SourceQuality "1"]
[TimeControl "40/5400+30:1800+30"]

{[%evp 21,29,33,25,31,28,20,29,17,31,16]} 1. d4 {[%emt 0:03:32]} Nf6 {[%emt 0:00:16]} 2. Nf3 {[%emt 0:00:06]} e6 {[%emt 0:01:47]} 3. c4 {[%emt 0:00:09]} d5 {[%emt 0:01:52]} 4. g3 {[%emt 0:00:09]} c5 {[%emt 0:02:21]} 5. cxd5 {[%emt 0:04:36]} exd5 {[%emt 0:00:14]} 6. Bg2 {[%emt 0:00:18]} Nc6 {[%emt 0:00:55]} 7. O-O {[%emt 0:00:24]} Be7 {[%emt 0:00:44]} 8. dxc5 {[%emt 0:07:25]} Bxc5 {[%emt 0:02:36]} 9. a3 {[%emt 0:00:06]} O-O {[%emt 0:06:50]} 10. b4 {[%emt 0:01:24]} Be7 {[%emt 0:02:36]} 11. Bb2 {[%emt 0:02:06]} Ne4 {[%emt 0:09:28]} 12. Nbd2 {[%emt 0:11:52] D30: Queen's Gambit Declined: Systems without Nc3.} Bf6 {[%emt 0:05:56]} 13. Qb3 {[%emt 0:11:53]} Be6 {[%emt 0:07:19]} 14. Rac1 {[%emt 0:00:59]} Re8 {[%emt 0:06:38]} 15. Bxf6 {[%emt 0:06:29] [#] A balanced but interesting game.  Weighted Error Value: White=0.07 (flawless) /Black=0.03 (flawless)} {Predecessor:} Qxf6 $146 16. Qe3 Nd6 17. Qc5 Red8 18. b5 Na5 19. Nd4 Nac4 20. Nxc4 Nxc4 21. e3 a5 22. bxa6 Rxa6 {½-½ (94) Sammalvuo,T (2417)-Sipila,V (2447) Hamina 2016} 1/2-1/2

[Event "Czech Open-GM 2022"]
[Site "Pardubice"]
[Date "2022.07.27"]
[Round "6.3"]
[White "Stocek, Jiri"]
[Black "Skytte, Rasmus"]
[Result "1-0"]
[ECO "D37"]
[WhiteElo "2548"]
[BlackElo "2349"]
[Annotator "TA"]
[PlyCount "57"]
[EventDate "2022.07.22"]
[EventType "swiss"]
[EventCountry "CZE"]
[SourceTitle "playchess.com"]
[Source "ChessBase"]
[SourceQuality "1"]
[TimeControl "40/5400+30:1800+30"]

{[%evp 11,57,-2,18,17,29,20,22,8,34,27,141,138,135,118,201,177,198,224,200,210,215,187,284,248,246,229,277,262,289,300,298,285,437,437,437,437,437,437,402,220,486,504,1466,1404,1227,1227,1197,1144]} 1. d4 {[%emt 0:02:17] Huzman,A} Nf6 {[%emt 0:00:09]} 2. c4 {[%emt 0:00:25]} e6 {[%emt 0:01:08]} 3. Nf3 {[%emt 0:02:11]} d5 {[%emt 0:00:24]} 4. Nc3 {[%emt 0:04:10]} dxc4 {[%emt 0:00:13]} 5. Qa4+ {[%emt 0:01:07]} Nbd7 {[%emt 0:11:08]} 6. e4 {[%emt 0:01:45]} Be7 {[%emt 0:03:12] The main line 6...Be7 scores better than 6...a6.} (6... c5 {with more complications.} 7. Bf4 a6 8. Bxc4 cxd4 9. Nxd4 Bc5) 7. Bxc4 {[%emt 0:02:46] D23: Queen's Gambit Accepted: 3 Nf3 Nf6 sidelines.} O-O {[%emt 0:04:51]} 8. Qc2 {[%emt 0:02:39]} c5 $1 {[%emt 0:02:02] White must now prevent ...cxd4.} 9. dxc5 {[%emt 0:01:11] The position is equal.} Nxc5 {[%emt 0:06:06][%cal Ob7b5]} 10. O-O {[%emt 0:02:38]} b6 {[%emt 0:12:24]} (10... b5 $1 $11 11. Bxb5 Bb7) 11. Rd1 $16 {[%emt 0:06:02]} Qc7 {[%emt 0:03:21] [#]} 12. e5 $1 {[%emt 0:04:47] White is more active.} Nfd7 {[%emt 0:03:55]} (12... Ng4 $16 {was worth a try.}) 13. Nb5 $36 {[%emt 0:01:51][%mdl 2048] White is really pushing.} Qb8 {[%emt 0:11:32] [#]} 14. Bg5 $146 {[%emt 0:04:09]} ({Predecessor:} 14. Bf4 a5 15. Qe2 Rd8 16. Nd6 Nf8 17. Bg5 Qc7 18. Nb5 Rxd1+ 19. Rxd1 Qb7 20. Nd6 {1-0 (27) Urban,K (2497)-Mazi,L (2365) Warsaw 2005 CBM 108 [Huzman,A]}) 14... Bxg5 {[%emt 0:07:08]} 15. Nxg5 {[%emt 0:00:07][%csl Gg5][%cal Rc2h7]} g6 {[%emt 0:00:05]} 16. f4 {[%emt 0:13:04] aiming for b4.} a6 {[%emt 0:04:37]} (16... a5 {might work better.} 17. Rd4 Ba6) 17. Nd6 {[%emt 0:00:27] Strongly threatening Qf2.} b5 {[%emt 0:00:40]} 18. b4 {[%emt 0:09:43]} bxc4 {[%emt 0:04:42]} 19. bxc5 {[%emt 0:00:04]} Nxc5 {[%emt 0:01:08]} 20. Qxc4 {[%emt 0:00:39]} Qa7 {[%emt 0:03:51] ( -> ...Nd3+)} 21. Kh1 {[%emt 0:03:50]} h6 {[%emt 0:05:12]} (21... Bb7 $142 22. Rac1 Nd7) 22. Ngxf7 {[%emt 0:05:25]} (22. Nge4 Nxe4 23. Qxe4 Rb8 $14) 22... Rxf7 {[%emt 0:03:34]} 23. Nxf7 {[%emt 0:03:09]} Kxf7 {[%emt 0:01:53]} 24. Rac1 {[%emt 0:01:08]} Nd7 {[%emt 0:00:34]} 25. Rc3 {[%emt 0:08:21]} ({Less strong is} 25. Rd6 Nf8 $14) (25. Qc6 $142) 25... Nf8 $2 {[%emt 0:04:51] [#]} (25... Nb6 {was called for.} 26. Qc5 Bd7) 26. f5 $1 {[%emt 0:01:07] White is clearly winning.} gxf5 {[%emt 0:00:40]} (26... Kg8 $142 27. fxg6 Bd7) 27. Qh4 {[%emt 0:00:10]} Qe7 {[%emt 0:03:39] Inhibits Qf6+.} 28. Qxh6 {[%emt 0:01:17]} Bb7 {[%emt 0:00:54]} 29. Qh5+ {[%emt 0:00:44] Black did not feel at home in the position after the opening.  Weighted Error Value: White=0.10 (very precise) /Black=0.44} 1-0

[Event "Czech Open-GM 2022"]
[Site "Pardubice"]
[Date "2022.07.27"]
[Round "6.4"]
[White "Slovak, Kilian"]
[Black "Harsha Bharathakoti"]
[Result "0-1"]
[ECO "B33"]
[WhiteElo "2321"]
[BlackElo "2547"]
[Annotator "TA"]
[PlyCount "62"]
[EventDate "2022.07.22"]
[EventType "swiss"]
[EventCountry "CZE"]
[SourceTitle "playchess.com"]
[Source "ChessBase"]
[SourceQuality "1"]
[TimeControl "40/5400+30:1800+30"]

{[%evp 25,62,47,49,11,0,0,45,17,47,6,40,-47,0,-286,-289,-279,-271,-280,-259,-368,-344,-353,-322,-547,-547,-551,-541,-549,-549,-543,-541,-524,-514,-849,-808,-29984,-29985,-29983,-5320]} 1. e4 {[%emt 0:00:21]} c5 {[%emt 0:00:55]} 2. Nf3 {[%emt 0:00:28]} e6 {[%emt 0:02:05]} 3. d4 {[%emt 0:00:04]} cxd4 {[%emt 0:00:05]} 4. Nxd4 {[%emt 0:00:06]} Nf6 {[%emt 0:00:41]} 5. Nc3 {[%emt 0:00:14]} Nc6 {[%emt 0:00:05]} 6. Ndb5 {[%emt 0:00:31]} d6 {[%emt 0:00:07]} 7. Bf4 {[%emt 0:00:22]} e5 {[%emt 0:00:04]} 8. Bg5 {[%emt 0:00:07]} a6 {[%emt 0:00:05]} 9. Na3 {[%emt 0:00:06]} b5 {[%emt 0:05:37]} 10. Bxf6 {[%emt 0:00:50]} gxf6 {[%emt 0:00:05][%cal Bg7f6,Bf6f5][%mdl 32]} 11. Nd5 {[%emt 0:00:06]} f5 {[%emt 0:00:25]} 12. Bd3 {[%emt 0:03:55]} Be6 {[%emt 0:00:11]} 13. c3 {[%emt 0:00:08] 13.Qh5 is the modern continuation.} Bg7 {[%emt 0:02:06]} 14. Nxb5 {[%emt 0:00:08] B33: Sicilian: Pelikan and Sveshnikov Variations.} axb5 {[%emt 0:11:55]} 15. Bxb5 {[%emt 0:00:06]} Bd7 {[%emt 0:21:38]} 16. exf5 {[%emt 0:00:12] White is slightly better.} O-O {[%emt 0:00:10]} 17. Qg4 {[%emt 0:01:25] Inhibits Qg5.} Kh8 {[%emt 0:00:47] Hoping for ...Ra5.} (17... Nb8 $5 {[%cal Rg8h8]}) 18. Qe4 {[%emt 0:04:07]} (18. O-O $14) 18... Qb8 {[%emt 0:19:54] [#]} (18... Ra5 $15 19. a4 Ne7 20. Nxe7 Bxb5) 19. a4 $146 {[%emt 0:14:24][%mdl 8192] [#]} (19. Bd3 $11 {and White has nothing to worry.} f6 20. O-O) ({Predecessor:} 19. c4 Bxf5 20. Qxf5 Nd4 21. Qb1 Nxb5 22. cxb5 Qxb5 23. Nc3 Qc4 24. Qe4 Qxe4+ 25. Nxe4 d5 26. Ng3 {½-½ (40) Wu,L (2019)-Stelmaszyk,N (2301) Berlin 2020}) 19... Qxb5 $1 $19 {[%emt 0:00:44][%mdl 512]} 20. axb5 {[%emt 0:00:05]} Rxa1+ {[%emt 0:00:03]} 21. Ke2 {[%emt 0:00:27]} Rxh1 {[%emt 0:01:53] The board is on fire.} 22. f6 {[%emt 0:47:40] [#]} (22. bxc6 $142 Bxc6 23. Qc4) 22... Bh6 $1 {[%emt 0:07:56]} 23. bxc6 {[%emt 0:11:36]} Bxc6 {[%emt 0:00:18]} 24. Qh4 $2 {[%emt 0:01:14]} (24. Qc4 Bb7 25. Qb5) 24... Bxd5 {[%emt 0:00:27]} 25. Qxh6 {[%emt 0:00:04][%cal Rh6f8]} Rg8 {[%emt 0:00:03] And now ...Bc4+ would win.} 26. g3 {[%emt 0:00:57]} Rb1 {[%emt 0:00:50]} 27. Qd2 {[%emt 0:01:07]} Bc4+ {[%emt 0:01:16]} 28. Kf3 {[%emt 0:00:06]} d5 {[%emt 0:00:20]} 29. Qc2 {[%emt 0:01:42]} (29. Qe3 $142 e4+ 30. Kf4) 29... Re1 {[%emt 0:01:06][%cal Oc4d3] ( -> ...Bd3!)} 30. Kg2 {[%emt 0:08:26]} Bf1+ {[%emt 0:00:07]} 31. Kf3 {[%emt 0:00:12] [#]} Bd3 $1 {[%emt 0:00:03][%mdl 512] Weighted Error Value: White=1.36/Black=0.11 (very precise)} 0-1